Cogmind - Beta 13 --- EXPLORER MODE // 2024.04.10 @ 12:08:28 Player: lillie Result: Destroyed by D-53 Grenadier with Mini Grenade Launcher Performance ------------- Evolutions (0) 0 Regions Visited (2) 400 Robots Destroyed (15) 75 Value Destroyed (359) 359 Prototype IDs (0) 0 Alien Tech Used (0) 0 Bonus (0) 0 TOTAL SCORE: 834 Bonus ------- None Cogmind --------- Core Integrity 0/250 Matter 274/300 Energy 100/100 System Corruption 1% Temperature Cool (0) Movement Core (1350) Ox26 Location -10/Mines Parts ------- > --- POWER (1) -------- (None) > --- PROPULSION (2) --- (None) > --- UTILITY (3) ------ Huge Storage Unit Core Shielding > --- WEAPON (2) ------- (None) > --- INVENTORY (25) --- Light Treads Sensor Array Datajack Peak State ------------ > --- POWER ------------ Light Nuclear Core > --- PROPULSION ------- Light Treads Light Treads > --- UTILITY ---------- Huge Storage Unit Core Shielding Weapon Shielding > --- WEAPON ----------- Light Assault Rifle Datajack > --- INVENTORY -------- Light Ion Engine Light Ion Engine Light Ion Engine Sensor Array Assault Rifle [Rating: 10] Favorites ----------- Power Light Nuclear Core Engine Light Ion Engine Power Core Light Nuclear Core Propulsion Light Treads Treads Light Treads Wheel Wheel Hover Unit Backup Propulsion I Utility Core Shielding Storage Huge Storage Unit Protection Core Shielding Weapon Datajack Ballistic Gun Light Assault Rifle Launcher Grenade Launcher Special Melee Weapon Datajack Build | -11 -10 -10 ------- Run | Yrd Mat Min Slots Evolved 1 | . 1 . Power . | . . . Propulsion . | . . . Utility 1 | . 1 . Weapon . | . . . Parts Attached 17 | 7 9 1 Power 2 | 1 1 . Engine 1 | 1 . . Core 1 | . 1 . Reactor . | . . . Propulsion 5 | 2 3 . Treads 3 | . 3 . Leg . | . . . Wheel 2 | 2 . . Hover . | . . . Flight . | . . . Utility 3 | 2 1 . Device . | . . . Storage 1 | . 1 . Processor . | . . . Hackware . | . . . Protection 2 | 2 . . Artifact . | . . . Weapon 7 | 2 4 1 Energy Gun . | . . . Energy Cannon . | . . . Ballistic Gun 4 | 2 1 1 Ballistic Cannon . | . . . Launcher 1 | . 1 . Special Weapon . | . . . Impact Weapon . | . . . Slashing Weapon . | . . . Piercing Weapon . | . . . Special Melee Weapon 2 | . 2 . Unidentified Prototypes . | . . . Parts Lost 6 | . . 6 Power 1 | . . 1 Propulsion 2 | . . 2 Utility 1 | . . 1 Weapon 2 | . . 2 Highest Loss Streak 6 | . . 6 To Critical Strikes . | . . . Average Slot Usage (%) 98 | . 97 98 Engine 2 | . 3 . Core 9 | . 8 11 Treads 23 | . 23 24 Storage 10 | . 10 12 Protection 24 | . 25 24 Ballistic Gun 6 | . 8 . Launcher 7 | . 5 11 Special Melee Weapon 10 | . 10 11 Naked Turns . | . . . Heaviest Build 92 | 8 91 92 Greatest Support 40 | 20 40 40 Greatest Overweight (x) 26 | . 15 26 Average Overweight (x) 1 | . 1 2 Largest Inventory Capacity 25 | 5 25 25 Average Capacity 22 | 5 21 25 Most Carried 5 | 2 5 5 Average Carried 3 | . 3 4 Final Capacity 25 | 5 25 25 Final Carried 4 | . 4 3 Class Distribution -------------------- 100% | Hacker-Mutant Dominant Class ---------------- Hacker-Mutant | -10/Materials Hacker-Mutant | -10/Mines Resources | -11 -10 -10 ----------- Run | Yrd Mat Min Matter Collected 516 | 282 224 10 Remotely . | . . . Salvage Created 487 | 37 417 33 Parts 31 | 1 30 . Haulers Intercepted . | . . . Recyclers Shooed . | . . . Parts Field Recycled . | . . . Retrieved Matter . | . . . Parts Self-Destructed . | . . . Prevented . | . . . Kills | -11 -10 -10 ------- Run | Yrd Mat Min Combat Hostiles Destroyed 15 | 1 8 6 Guns 7 | 1 6 . AOE 8 | . 2 6 Classes Destroyed 6 | 1 4 1 Worker 2 | . 2 . Builder 1 | . 1 . Watcher 3 | . 3 . Swarmer 2 | . 2 . Grunt 7 | 1 6 . Assembled 6 | . . 6 Best Kill Streak 6 | 1 4 6 Combat Bots Only 6 | 1 2 6 Max Kills in Single Turn 2 | 1 1 2 Gunslinging . | . . . Exploded 2 | . 1 2 Melee . | . . . Uniques/NPCs Destroyed . | . . . Combat | -11 -10 -10 -------- Run | Yrd Mat Min Hostile Shots Fired 131 | 4 64 63 Missed 44 | 1 20 23 Damage Taken 1026 | 20 333 673 Core 255 | 14 47 194 Absorbed by Shields . | . . . Redirected to Shielding 99 | . 25 74 Ignored by Resistances 628 | 13 215 400 Regen/Repaired (Parts) 89 | . 89 . Core Remaining (%) 94 | 94 . . Volleys Fired 53 | 3 46 4 Largest 2 | 2 2 2 Hottest 50 | 40 40 50 Shots Fired 73 | 6 61 6 Gun 64 | 6 56 2 Cannon . | . . . Launcher 9 | . 5 4 Special . | . . . Kinetic 64 | 6 56 2 Thermal . | . . . Explosive 9 | . 5 4 Electromagnetic . | . . . Robot Hit Streak 21 | 6 21 17 Robot Miss Streak 1 | . 1 . Penetration Max . | . . . Secondary Targets 1 | . 1 . Max Gunslinging Chain 1 | . 1 . Shots Hit Robots 66 | 6 56 4 Core Hits 40 | 2 22 16 Critical Kills 1 | . 1 . Critical Parts Destroyed . | . . . Critical Strikes 1 | . 1 . Destroy 1 | . 1 . Melee Attacks 1 | . 1 . Impact . | . . . Slashing . | . . . Piercing . | . . . Sneak Attacks 1 | . 1 . Combat Hostiles . | . . . Follow-up Attacks . | . . . Damage Inflicted 1277 | 67 693 517 Guns 548 | 67 481 . Cannons . | . . . Explosions 729 | . 212 517 Melee . | . . . Ramming . | . . . Kinetic 548 | 67 481 . Thermal . | . . . Explosive 729 | . 212 517 Electromagnetic . | . . . Impact . | . . . Slashing . | . . . Piercing . | . . . Highest Corruption 1 | . 1 1 Average Corruption 1 | . 1 1 Corruption Purged . | . . . Corruption Blocked . | . . . Effects 11 | . 6 5 Message Errors 5 | . 1 4 Matter Fused 1 | . 1 . Heat Flow Errors 2 | . 2 . Energy Discharges 1 | . 1 . Data Loss (minor) 1 | . 1 . Alerts 1 | . . 1 Overload Shots . | . . . Overflow Damage 49 | . 42 7 Projectiles . | . . . Explosions 49 | . 42 7 Melee . | . . . Knockbacks . | . . . Impact . | . . . Kinetic . | . . . Secondary . | . . . Self-Inflicted Damage 64 | . 15 49 Shots 3 | . 1 2 Rammed . | . . . Targets Rammed . | . . . Kicked . | . . . Crushed . | . . . Highest Temperature 221 | 6 221 . Average Temperature 44 | 6 47 . Received Heat Transfer 288 | 18 270 . Siege Activations . | . . . Robots Corrupted . | . . . Combat Hostiles . | . . . Parts Fried . | . . . Impact Corruptions . | . . . Robots Melted . | . . . Combat Hostiles . | . . . Parts Melted . | . . . Heat Transferred . | . . . Parts Sabotaged . | . . . Parts Stolen . | . . . Parts Stripped . | . . . Power Chain Reactions . | . . . Alert | -11 -10 -10 ------- Run | Yrd Mat Min Peak Influence 122 | 20 122 21 Initial 9 | . 9 . Average 23 | 5 33 . Maximum Alert Level . | . . . Low Security (%) 100 | 100 100 100 Level 1 . | . . . Level 2 . | . . . Level 3 . | . . . Level 4 . | . . . Level 5 . | . . . High Security . | . . . Max Security . | . . . Squads Dispatched . | . . . Investigation . | . . . Extermination . | . . . Reinforcement . | . . . Assault . | . . . Garrison . | . . . Intercept . | . . . Searches Triggered . | . . . Construction Impeded . | . . . Haulers Reinforced . | . . . Active Scanning Responses . | . . . Cargo Convoy Interrupts . | . . . Stealth | -11 -10 -10 --------- Run | Yrd Mat Min Distress Signals 1 | . 1 . Communications Jammed . | . . . Distress Signals . | . . . Times Spotted 34 | 1 13 20 Peak Tracking Total 16 | 1 3 16 Tactical Retreats 2 | . 1 1 Traps | -11 -10 -10 ------- Run | Yrd Mat Min Traps Triggered 2 | . 2 . Indirectly . | . . . Trap Hack Attempts . | . . . Triggered . | . . . Disarmed . | . . . Reprogrammed 2 | . 2 . Reused . | . . . Traps Extracted . | . . . Installed . | . . . Triggered . | . . . Machines | -11 -10 -10 ---------- Run | Yrd Mat Min Machines Disabled 2 | . 2 . Max in Single Turn 2 | . 2 . Machines Repaired . | . . . Machines Dismantled . | . . . Machines Sabotaged . | . . . Overloaded Fab Kills . | . . . Hacking | -11 -10 -10 --------- Run | Yrd Mat Min Machines Accessed 4 | . 4 . Terminals 3 | . 3 . Fabricators . | . . . Repair Stations 1 | . 1 . Recycling Units . | . . . Scanalyzers . | . . . Garrison Access . | . . . Total Hacks 13 | . 13 . Successful 10 | . 10 . Failed 3 | . 3 . Catastrophic . | . . . Database Lockouts . | . . . Manual . | . . . Terminals 8 | . 8 . Fabricators . | . . . Repair Stations 5 | . 5 . Recycling Units . | . . . Scanalyzers . | . . . Garrison Access . | . . . Terminal Hacks 5 | . 5 . Locate Traps 1 | . 1 . Reprogram Traps 1 | . 1 . Dispatch Records 1 | . 1 . Patrol Status 1 | . 1 . Zone Layout 1 | . 1 . Fabricator Hacks . | . . . Repair Station Hacks 5 | . 5 . Scan Component 2 | . 2 . Repair 2 | . 2 . Refit 1 | . 1 . Recycling Unit Hacks . | . . . Scanalyzer . | . . . Garrison Access Hacks . | . . . Unauthorized Hacks . | . . . Terminals . | . . . Fabricators . | . . . Repair Stations . | . . . Recycling Units . | . . . Scanalyzers . | . . . Garrison Access . | . . . Data Cores Recovered . | . . . Used . | . . . Hacking Detections 2 | . 2 . Full Trace Events 1 | . 1 . Feedback Events . | . . . Feedback Blocked . | . . . Robot Schematics Acquired . | . . . Robots Built . | . . . Authchips . | . . . Time . | . . . Total Robot Build Rating . | . . . Part Schematics Acquired . | . . . Parts Built . | . . . Authchips . | . . . Time . | . . . Total Part Build Rating . | . . . Parts Repaired 2 | . 2 . Time 52 | . 52 . Parts Recycled . | . . . Recycled Matter . | . . . Retrieved Matter . | . . . Retrieved Components . | . . . Parts Scanalyzed . | . . . Part Schematics Acquired . | . . . Parts Damaged . | . . . Bothacking | -11 -10 -10 ------------ Run | Yrd Mat Min Used RIF Installer . | . . . Robots Hacked 1 | . 1 . Non-combat 1 | . 1 . Combat . | . . . Robot Hacks Applied 1 | . 1 . parse_system 1 | . 1 . Relay Couplers Released . | . . . Fabnet Peak Effective % . | . . . Robots Rewired . | . . . Allies Hacked . | . . . Hacks Repelled . | . . . Allies | -11 -10 -10 -------- Run | Yrd Mat Min Total Allies . | . . . Largest Group . | . . . Highest-Rated Group . | . . . Highest-Rated Ally . | . . . Total Orders . | . . . Ally Attacks . | . . . Total Damage . | . . . Kills . | . . . Allies Corrupted . | . . . Allies Melted . | . . . Intel | -11 -10 -10 ------- Run | Yrd Mat Min Robot Analysis Total . | . . . Derelict Logs Recovered 1 | . . 1 Drone Launches . | . . . Drone Recoveries . | . . . Exploration | -11 -10 -10 ------------- Run | Yrd Mat Min Turns Passed 2557 | 73 1791 693 Spaces Moved 834 | 70 553 211 Core 18 | 17 . 1 Treads 733 | . 523 210 Legs . | . . . Wheels 77 | 53 24 . Hover 6 | . 6 . Flight . | . . . Fastest Speed 50 | 50 80 320 Average Speed 273 | 72 279 325 Slowest Speed 1350 | 80 1300 1350 Overloaded Moves . | . . . Propulsion Burnouts . | . . . Robots Hopped . | . . . Cave-ins Triggered . | . . . Exploration Rate (%) 52 | 8 90 60 Regions Visited 2 Branch Regions 1 Pre-discovered Areas . | . . . Known Exits Taken 2 | 1 1 . Unknown Exits Taken . | . . . Scrap Searched . | . . . Spaces Dug . | . . . Terrain Destroyed 43 | . 18 25 Melee . | . . . Projectile . | . . . AOE 43 | . 18 25 Terrain Rammed . | . . . Walls Destroyed . | . . . Machines Disabled . | . . . Actions | -11 -10 -10 --------- Run | Yrd Mat Min Total 1052 | 86 746 220 Wait 118 | . 118 . Move 832 | 69 552 211 Hop . | . . . Pick Up 21 | 7 13 1 Fast Attach . | . . . Attach 11 | 7 3 1 Detach 1 | . . 1 Swap 6 | . 6 . Drop 9 | . 7 2 Fire 53 | 3 46 4 Melee 1 | . 1 . Ram . | . . . Kick . | . . . Crush . | . . . Escape Stasis . | . . . Rewire . | . . . Trap . | . . . Miscellaneous . | . . . Route ------- -11/Scrapyard -10/Materials (discovered 4 exits: *Mat x3 / *Min) -10/Mines History --------- Turn | Location | Event 2 | -11/Scrapyard | Met Revision 17 43 | -11/Scrapyard | Identified exit to Materials 43 | -11/Scrapyard | Discovered exit to Materials (range 8) 74 | -11/Scrapyard | Entered Materials 74 | -10/Materials | Evolved 1 slot: Utility x1 234 | -10/Materials | Identified exit to Materials 234 | -10/Materials | Discovered exit to Materials (range 15) 279 | -10/Materials | Identified exit to Mines 279 | -10/Materials | Discovered exit to Mines (range 6) 303 | -10/Materials | Build established: Hacker-Mutant 1033 | -10/Materials | Discovered exit to Materials (range 11) 1155 | -10/Materials | Discovered exit to Materials (range 6) 1275 | -10/Materials | Repaired Lgt. Assault Rifle 1301 | -10/Materials | Repaired Lgt. Treads 1865 | -10/Materials | Entered Mines 2026 | -10/Mines | Learned 4 Materials zone layouts 2501 | -10/Mines | Assembled infested the area 2506 | -10/Mines | Assisted by a Guerilla fighting off Assembled 2540 | -10/Mines | Core integrity fell below 50% 2552 | -10/Mines | Core integrity fell below 20% 2558 | -10/Mines | Destroyed by D-53 Grenadier with Mini Grenade Launcher Last Messages --------------- as-84528 destroyed. U-05 Engineer builds a Wall. 1F-TBX(h) system corrupted by crushing effect. 1F-TBX(h) destroyed. as-28949 destroyed. Assault Rifle destroyed. as-78184 destroyed. as-74989 destroyed. Dropped Lgt. Ion Engine. Dropped Heat Sink. as-83121 destroyed. Lgt. Treads destroyed. D-53 Grenadier destroyed. K-01 Serf destroyed. The unstable cave ceiling collapses. Lgt. Nuclear Core destroyed. The unstable cave ceiling collapses. K-01 Serf collects debris. The unstable cave ceiling collapses. [Achievement: First Step to Greatness] Map ----- +----------------------------------------------------+ | ?????????????????# | | ????????????????????????##### ######### | | ????????????????????????????# ###???????? | | ????????????????????????????# #?????????? | | ?????????##########?????????# #?????????? | | ?????????# #?????????# #??##??#### | | ?????????# ########### ##?# | | ?????????# """" #?# | | ?????????# """" ########### #?# ??### | | ?????????# """" #?????????# #?# #??## | | ?????????# #????????## #?# #?## | | ?????????# #???????## #?# ### | | ????###### ######### ### ## " | | ????# ######### ## ## " | | ????# !! #???????# ##### ## #?# " | | ????# % #???????# ##### ## ### " | | ????# ! ##??##### ## ## | | ????# !!! ##?# ###### # | | ????# #?#%#####????### | | ????## ### #??????????## | | ?????## ## # ###?????????# | | ??????# ##### ##????????## # | | ??????# ### #?????????## #### | | ??????# t ##?????????## ##??? | | ??????#### d #??????????# #???? | | ?????????# # @ # #??????????# ##???? | | ?????????# #????????# #????? | | ????????#; ##????????# #????? | | ????????## # #?????????# ##??? ^ | | ?????????# # ##?????????#####???## | | ?????????#?# ?????????????????^ ? | | ???????????# ??????????????# #?# | | ???????????# ?????????????#??# | | ???????????# %% =!k ?????????????? ^ | | ??????????? *% |%! ???????????? # | | ?????????? = ## ????????? #? | | ????????? % #;#### ????????# ?? | | ????????? #; ######???#####????????????? | | ???????? ??????????????????????????? | | ??????? ?###??????????????????????????? | | ????????????????????????????????????????? | | ????????????????????????????????????????? | | ????????????????????????????????????????? | | ????????????????????????????????????????? | | ????????????????????????????????????????? | | ????????????????????????????????????????? | | ????????????????????????????????????????? | | ????????????????????????????????????????? | | | | | +----------------------------------------------------+ Best States ------------- Heat Dissipation 25 Energy Generation 14 Energy Capacity 160 Matter Stores 300 Matter Capacity 300 Sight Range 16 Terrain Scan Density 10 Resistance: KI 35 Resistance: TH 35 Resistance: EX 35 Resistance: EM 35 Resistance: I 35 Resistance: S 35 Resistance: P 35 Core Shielding 20 Weapon Shielding 33 Evasion (%) 50 Recoil Reduction 2 Offensive Hacking 20 Item Schematics ----------------- None Robot Schematics ------------------ None Fabricated ------------ Nothing Alien Tech Used ----------------- None Achievements -------------- First Step to Greatness Let's See Who's Tougher Part-time Mechanic Challenges ------------ None Game ------ Seed CompositeFlightJammer Manual? 0 Play Time 00:16:26 Cumulative 0.2 hours Start 2024.04.10 @ 11:52:02 End 2024.04.10 @ 12:08:28 Sessions 1 Manual Loads 0 Difficulty Explorer Special Mode None Game No. 1 Rogue 0 Adventurer 0 Explorer 1 Win Type - Total 0 Types 0/0/0/0/0/0/0/0/0 Lore% 0 Gallery% 2 Achievement% 1 Wizard Run 0 Options --------- Layout 1 ASCII 0 Keyboard 0 Movement Mouse Keybinds 0 Fullscreen 1 Font 24/Smallcaps Map View 50x35 Zoom Use 0% Tactical HUD 0 Map Filters NONE Filters NONE Steam 1 RUN: ad819765-73fa-4fbf-94d7-675d0f801644